bitfinex/quotes_SOLUSD_20241105
["timestamp","ask_amount","ask_price","bid_price","bid_amount"]
[1730823633228,23.776884,167.06,167.0,17.21321227]
[1730823633827,40.99009627,167.06,167.0,23.20091227]
[1730823634325,46.97599627,167.06,167.0,23.20091227]
[1730823634536,46.97599627,167.06,167.0,38.17091227]
[1730823634725,23.776884,167.06,167.01,17.21321227]
[1730823634927,23.776884,167.07,167.02,17.21321227]
[1730823635136,23.776884,167.08,167.02,17.21321227]
[1730823635520,23.28941227,167.09,167.03,17.21321227]
[1730823635929,23.28941227,167.09,167.03,23.19981227]
[1730823636121,5.9848,167.09,167.03,5.9866]
[1730823636421,17.21321227,167.08,167.03,5.9866]
[1730823636633,17.21321227,167.07,167.03,5.9866]
[1730823637147,17.21321227,167.07,167.02,20.0]
[1730823638150,17.21321227,167.05,167.01,14.9691]
[1730823638346,17.21321227,167.04,167.01,14.9691]
[1730823638546,15.176,167.08,166.98,5.9884]
[1730823638547,17.21321227,167.03,166.98,5.9884]
[1730823639424,17.21321227,167.03,166.98,20.9602]
[1730823639851,17.21321227,167.04,166.98,38.17341227]
[1730823641150,17.21321227,167.04,166.99,17.21321227]
[1730823642149,40.99009627,167.07,167.01,17.21321227]
[1730823642350,17.21321227,167.06,167.01,17.21321227]
[1730823643025,32.38921227,167.08,167.02,17.21321227]
[1730823643252,17.21321227,167.07,167.02,17.21321227]
[1730823643459,17.21321227,167.07,167.01,37.21321227]
[1730823644439,16.3266,167.12,167.06,17.21321227]
[1730823644640,0.3069863,167.15,167.11,17.21321227]
[1730823644843,0.3069863,167.15,167.12,17.21321227]
[1730823645142,17.52019857,167.15,167.05,0.1]
[1730823645342,17.52019857,167.15,167.1,20.0]
[1730823645731,17.52019857,167.15,167.09,17.21321227]
[1730823645732,17.21321227,167.14,167.09,17.21321227]
[1730823645965,17.21321227,167.14,167.08,17.21321227]
[1730823646547,17.21321227,167.14,167.09,9.32291545]
[1730823647356,17.21321227,167.12,167.09,3.33821545]
[1730823647571,17.21321227,167.11,167.08,14.9625]
[1730823647737,17.21321227,167.11,167.05,23.19911227]
[1730823647944,17.21321227,167.1,167.06,3.33917603]
[1730823648658,17.21321227,167.11,167.06,26.5381883]
[1730823649163,17.21321227,167.11,167.07,3.33917603]
[1730823649339,17.21321227,167.11,167.06,23.19901227]
[1730823649748,17.21321227,167.11,167.05,17.21321227]
[1730823650060,17.21321227,167.08,167.06,3.34180264]
[1730823650238,17.21321227,167.08,167.05,3.34206662]
[1730823650438,17.21321227,167.09,167.04,14.9661]
[1730823650662,17.21321227,167.1,167.04,32.17931227]
[1730823650855,17.21321227,167.1,167.05,3.34264983]
[1730823651559,17.21321227,167.09,167.05,3.34264983]
[1730823652656,23.776884,167.12,167.06,17.21321227]
[1730823652962,17.21321227,167.1,167.05,17.21321227]
[1730823653669,17.21321227,167.1,167.05,23.19921227]
[1730823653966,17.21321227,167.11,167.06,17.21321227]
[1730823654765,17.21321227,167.11,167.05,17.21321227]
[1730823655764,23.776884,167.11,167.07,17.21321227]
[1730823656445,40.99009627,167.11,167.06,17.21321227]
[1730823656845,46.97409627,167.11,167.06,17.21321227]
[1730823657543,29.760884,167.11,167.06,17.21321227]
[1730823657756,23.776884,167.11,167.06,23.19891227]
[1730823658265,29.760884,167.11,167.06,23.19891227]
[1730823659767,29.760884,167.11,167.06,17.21321227]
[1730823659961,46.97409627,167.11,167.06,17.21321227]
[1730823663774,17.21321227,167.1,167.04,17.21321227]
[1730823664275,23.776884,167.09,167.04,17.21321227]
[1730823665475,23.19711227,167.12,167.06,17.21321227]
[1730823665679,23.776884,167.11,167.06,17.21321227]
[1730823666347,23.19711227,167.12,167.06,17.21321227]
[1730823666549,17.21321227,167.11,167.06,17.21321227]
[1730823666754,17.21321227,167.1,167.05,17.21321227]
[1730823667270,17.21321227,167.11,167.05,17.21321227]
[1730823667667,17.21321227,167.11,167.06,17.21321227]
[1730823668059,17.21321227,167.11,167.06,23.19901227]
[1730823668262,0.3069863,167.15,167.1,17.21321227]
[1730823668446,0.3069863,167.15,167.13,17.21321227]
[1730823668649,0.3069863,167.15,167.14,17.21321227]
[1730823668860,0.3069863,167.15,167.13,17.21321227]
[1730823669058,0.3069863,167.15,167.14,17.21321227]
[1730823669951,0.3069863,167.15,167.13,17.21321227]
[1730823670777,0.3069863,167.15,167.12,17.21321227]
[1730823671072,0.3069863,167.15,167.13,17.21321227]
[1730823671669,30.0664703,167.15,167.1,17.21321227]
[1730823671861,47.27968257,167.15,167.09,17.21321227]
[1730823672059,47.27968257,167.15,167.1,17.21321227]
[1730823674074,17.21321227,167.14,167.09,17.21321227]
[1730823674780,57.54439627,167.13,167.07,32.17691227]
[1730823675070,57.54439627,167.13,167.05,17.21321227]
[1730823675071,17.21321227,167.1,167.05,17.21321227]
[1730823675251,23.776884,167.09,167.05,17.21321227]
[1730823675756,6.029,167.11,167.07,17.21321227]
[1730823675960,12.013,167.11,167.07,17.21321227]
[1730823676271,16.5543,167.13,167.1,17.21321227]
[1730823676572,16.5543,167.13,167.09,17.21321227]
[1730823676769,39.75081227,167.13,167.08,17.21321227]
[1730823676969,22.5376,167.13,167.08,17.21321227]
[1730823680065,39.75081227,167.13,167.08,17.21321227]
[1730823680471,17.21321227,167.12,167.07,17.21321227]
[1730823680673,17.21321227,167.12,167.06,14.9643]
[1730823680674,39.75081227,167.13,167.08,17.21321227]
[1730823682275,22.5376,167.13,167.08,17.21321227]
[1730823683083,22.5376,167.13,167.07,5.9853]
[1730823683084,17.21321227,167.11,167.05,17.21321227]
[1730823683273,17.21321227,167.1,167.05,17.21321227]
[1730823683584,17.21321227,167.09,167.04,17.21321227]
[1730823683879,17.21321227,167.08,167.03,17.21321227]
[1730823684264,5.9858,167.06,167.02,17.21321227]
[1730823685475,23.776884,167.07,167.03,17.21321227]
[1730823685663,29.762384,167.07,167.03,17.21321227]
[1730823688571,6.3946,167.08,167.05,17.21321227]
[1730823688885,23.19771227,167.1,167.0,20.958]
[1730823688886,5.9845,167.1,167.06,17.21321227]
[1730823689061,23.57501227,167.12,167.07,17.21321227]
[1730823689062,5.9841,167.11,167.07,17.21321227]
[1730823690378,5.9841,167.11,167.06,17.21321227]
[1730823690758,17.21321227,167.08,166.99,14.9702]
[1730823690983,23.776884,167.07,167.04,17.21321227]
[1730823691889,29.762084,167.08,167.04,17.21321227]
[1730823692381,29.762084,167.08,167.05,17.21321227]
[1730823693161,17.21321227,167.11,167.05,17.21321227]
[1730823693387,23.776884,167.1,167.06,17.21321227]
[1730823693890,5.984,167.11,167.06,17.21321227]
[1730823694393,5.984,167.11,167.07,17.21321227]
[1730823694681,12.3455,167.12,167.07,17.21321227]
[1730823694887,12.3455,167.12,167.08,17.21321227]
[1730823695188,0.3069863,167.15,167.11,17.21321227]
[1730823695481,0.3069863,167.15,167.14,17.21321227]
[1730823695868,0.3069863,167.15,167.12,17.21321227]
[1730823697497,0.3069863,167.15,167.11,17.21321227]
[1730823697792,0.3069863,167.15,167.12,17.21321227]
[1730823698291,0.3069863,167.15,167.13,17.21321227]
[1730823703292,0.3069863,167.15,167.13,11.00770418]
[1730823704191,0.3069863,167.15,167.14,11.00770418]
[1730823706565,0.3069863,167.15,167.14,16.99070418]
[1730823707379,0.3069863,167.15,167.14,5.983]
[1730823707575,0.3069863,167.15,167.12,14.9591]
[1730823707772,0.3069863,167.15,167.14,17.19166609]
[1730823708582,0.3069863,167.15,167.14,37.19166609]
[1730823709690,0.3069863,167.15,167.14,43.17466609]
[1730823710271,0.3069863,167.15,167.14,23.17466609]
[1730823711191,0.3069863,167.15,167.14,17.19166609]
[1730823711896,0.3069863,167.15,167.14,23.17466609]
[1730823713487,0.3069863,167.15,167.14,43.17466609]
[1730823726391,6.4914,167.22,167.14,43.17466609]
[1730823726605,30.268284,167.22,167.21,17.19166609]
[1730823727185,0.3069863,167.24,167.21,17.19166609]
[1730823727404,0.3069863,167.24,167.23,17.19166609]
[1730823727707,21.2881863,167.27,167.23,17.19166609]
[1730823727914,21.2881863,167.27,167.26,10.9911358]
[1730823728784,5.4302863,167.27,167.26,10.9911358]
[1730823730182,5.978,167.28,167.26,10.9911358]
[1730823730388,0.8,167.3,167.27,54.955679]
[1730823730585,0.8,167.3,167.29,10.9911358]
[1730823733708,24.576884,167.3,167.26,14.9461]
[1730823733905,23.776884,167.29,167.28,10.9911358]
[1730823734209,23.776884,167.29,167.26,10.9911358]
[1730823734405,23.776884,167.29,167.27,10.9911358]
[1730823734801,29.754684,167.29,167.27,10.9911358]
[1730823734992,6.1444,167.28,167.18,31.3721]
[1730823735191,23.776884,167.27,167.23,10.9911358]
[1730823735397,23.776884,167.27,167.26,10.9911358]
[1730823735703,23.776884,167.27,167.25,10.9911358]
[1730823735903,6.1444,167.28,167.26,10.9911358]
[1730823736101,6.1444,167.28,167.27,10.9911358]
[1730823736606,6.1444,167.28,167.22,14.9502]
[1730823736797,6.1444,167.28,167.24,10.9911358]
[1730823736798,5.9783,167.27,167.24,10.9911358]
[1730823737192,23.776884,167.26,167.24,10.9911358]
[1730823737707,23.776884,167.27,167.24,10.9911358]
[1730823739722,23.776884,167.25,167.23,10.9911358]
[1730823740413,23.776884,167.25,167.24,10.9911358]
[1730823740587,23.776884,167.25,167.23,10.9911358]
[1730823740793,23.776884,167.26,167.23,10.9911358]
[1730823741109,23.776884,167.26,167.2,14.9521]
[1730823741284,34.7680198,167.26,167.21,10.9911358]
[1730823741808,29.755884,167.26,167.22,10.9911358]
[1730823742796,6.1444,167.28,167.25,10.9911358]
[1730823743006,6.7776,167.3,167.27,10.9911358]
[1730823743201,0.8,167.3,167.29,10.9911358]
[1730823744387,0.8,167.3,167.29,30.9911358]
[1730823744917,0.8,167.3,167.29,36.9687358]
[1730823745424,0.8,167.3,167.29,43.13826326]
[1730823746323,0.8,167.3,167.29,423.13826326]
[1730823747510,0.8,167.3,167.29,397.16066326]
[1730823748006,0.8,167.3,167.29,403.13826326]
[1730823748414,0.8,167.3,167.29,397.16066326]
[1730823748599,0.8,167.3,167.29,380.0]
[1730823748911,0.8,167.3,167.29,397.16066326]
[1730823749813,0.8,167.3,167.29,380.0]
[1730823751395,0.8,167.3,167.29,403.13826326]
[1730823752316,0.8,167.3,167.29,393.3332851]
[1730823753408,0.8,167.3,167.29,373.3332851]
[1730823755201,0.8,167.3,167.29,393.3332851]
[1730823756799,0.8,167.3,167.29,350.19502184]
[1730823757002,0.8,167.3,167.29,373.3332851]
[1730823758221,0.8,167.3,167.29,367.3556851]
[1730823758517,0.8,167.3,167.29,373.3332851]
[1730823759103,0.8,167.3,167.29,367.3556851]
[1730823762130,0.8,167.3,167.29,373.3332851]
[1730823762414,0.8,167.3,167.29,350.19502184]
[1730823762722,0.8,167.3,167.29,367.3556851]
[1730823765207,0.8,167.3,167.29,373.3332851]
[1730823765614,0.8,167.3,167.29,367.3556851]
[1730823766911,0.8,167.3,167.29,373.3332851]
[1730823767307,0.8,167.3,167.29,367.15383937]
[1730823771308,0.8,167.3,167.29,356.17262184]
[1730823771526,0.8,167.3,167.29,367.15383937]
[1730823773011,0.3069863,167.32,167.29,382.09793937]
[1730823773212,0.3069863,167.32,167.3,0.1]
[1730823773429,0.3069863,167.32,167.31,16.95811753]
[1730823779833,0.3069863,167.32,167.31,17.05811753]
[1730823781214,6.2806863,167.4,167.31,50.9038]
[1730823781409,0.3069863,167.4,167.37,10.98121753]
[1730823781820,0.3069863,167.4,167.39,10.98121753]
[1730823782727,0.3069863,167.4,167.37,14.9369]
[1730823782945,0.3069863,167.4,167.38,10.98121753]
[1730823783135,0.3069863,167.4,167.37,25.91811753]
[1730823783916,0.3069863,167.4,167.36,5.9749]
[1730823784120,0.3069863,167.4,167.37,10.98121753]
[1730823786821,0.3069863,167.4,167.33,14.9396]
[1730823786822,17.26200383,167.4,167.35,10.98121753]
[1730823787023,6.2807863,167.4,167.35,10.98121753]
[1730823787648,10.98121753,167.39,167.33,20.9157]
[1730823787820,10.98121753,167.39,167.34,10.98121753]
[1730823788341,17.26200383,167.4,167.35,10.98121753]
[1730823788648,6.2807863,167.4,167.35,10.98121753]
[1730823789032,6.2807863,167.4,167.36,10.98121753]
[1730823790745,17.26200383,167.4,167.35,10.98121753]
[1730823791133,6.2807863,167.4,167.35,10.98121753]
[1730823791532,17.26200383,167.4,167.35,10.98121753]
[1730823792046,17.30001753,167.38,167.3,14.9432]
[1730823792229,10.98121753,167.37,167.32,10.98121753]
[1730823792427,32.46651753,167.38,167.32,10.98121753]
[1730823792748,34.75810153,167.37,167.32,10.98121753]
[1730823793041,23.776884,167.37,167.33,10.98121753]
[1730823793340,32.46651753,167.38,167.33,10.98121753]
[1730823793541,21.4853,167.38,167.36,10.98121753]
[1730823794638,23.27441753,167.38,167.29,350.19502184]
[1730823794824,10.98121753,167.37,167.32,10.98121753]
[1730823795927,16.95631753,167.37,167.32,10.98121753]
[1730823796457,23.776884,167.36,167.3,14.9432]
[1730823796638,23.776884,167.36,167.31,10.98121753]
[1730823797348,34.75810153,167.36,167.31,10.98121753]
[1730823797648,5.9751,167.37,167.33,10.98121753]
[1730823797832,12.2932,167.38,167.33,10.98121753]
[1730823798950,23.27441753,167.38,167.33,10.98121753]
[1730823799954,10.98121753,167.36,167.31,10.98121753]
[1730823800453,10.98121753,167.34,167.29,350.19502184]
[1730823800930,10.98121753,167.33,167.29,350.19502184]
[1730823801246,22.4719,167.32,167.29,350.19502184]
[1730823801623,39.64239818,167.32,167.29,350.19502184]
[1730823801826,28.4487,167.32,167.29,350.19502184]
[1730823802055,28.4487,167.32,167.27,17.17049818]
[1730823802349,23.776884,167.31,167.28,17.17049818]
[1730823802939,28.4487,167.32,167.3,17.17049818]
[1730823802940,22.4719,167.32,167.3,17.17049818]
[1730823803129,28.8481,167.36,167.31,17.17049818]
[1730823803450,22.8727,167.36,167.34,17.17049818]
[1730823803648,6.2445,167.36,167.34,17.17049818]
[1730823804730,5.9742,167.39,167.34,17.17049818]
[1730823804940,40.94738218,167.38,167.33,17.17049818]
[1730823805852,23.776884,167.36,167.31,32.11199818]
[1730823806027,23.776884,167.36,167.32,17.17049818]
[1730823806729,29.752184,167.36,167.31,32.11199818]
[1730823806930,29.752184,167.36,167.32,17.17049818]
[1730823807335,23.776884,167.36,167.33,17.17049818]
[1730823807539,17.17049818,167.39,167.34,17.17049818]
[1730823810655,5.9744,167.38,167.33,17.17049818]
[1730823811233,5.9744,167.38,167.34,17.17049818]
[1730823812063,6.2492,167.39,167.36,17.17049818]
[1730823812353,6.2492,167.39,167.37,17.17049818]
[1730823812983,22.9089863,167.4,167.37,17.17049818]
[1730823813365,16.9351863,167.4,167.38,17.17049818]
[1730823813654,17.17049818,167.39,167.34,17.17049818]
[1730823814149,40.07938448,167.4,167.34,17.17049818]
[1730823814554,40.07938448,167.4,167.35,17.17049818]
[1730823815351,22.9088863,167.4,167.36,17.17049818]
[1730823817567,22.9088863,167.4,167.35,17.17049818]
[1730823817737,22.9088863,167.4,167.36,17.17049818]
[1730823818464,40.07938448,167.4,167.35,17.17049818]
[1730823818841,40.07938448,167.4,167.34,17.17049818]
[1730823818842,40.94738218,167.39,167.34,17.17049818]
[1730823819135,40.94738218,167.39,167.32,14.9414]
[1730823819136,17.17049818,167.38,167.32,17.17049818]
[1730823819346,23.776884,167.37,167.33,17.17049818]
[1730823819551,23.776884,167.37,167.32,17.17049818]
[1730823819744,5.9751,167.36,167.32,17.17049818]
[1730823820057,31.9693863,167.4,167.29,20.9217]
[1730823820058,16.9351863,167.4,167.35,17.17049818]
[1730823820238,22.9088863,167.4,167.37,17.17049818]
[1730823820439,0.3069863,167.4,167.39,17.17049818]
[1730823821861,0.3069863,167.4,167.37,17.17049818]
[1730823822237,0.3069863,167.4,167.38,17.17049818]
[1730823825461,0.3069863,167.4,167.39,17.17049818]
[1730823825844,0.3069863,167.4,167.38,17.17049818]
[1730823826341,0.3069863,167.4,167.39,17.17049818]
[1730823831469,0.3069863,167.4,167.39,10.97326713]
[1730823832863,0.3069863,167.4,167.39,16.94726713]
[1730823834863,0.3069863,167.4,167.39,36.94726713]
[1730823835249,0.3069863,167.49,167.39,97.84846713]
[1730823835452,0.3069863,167.49,167.47,10.97326713]
[1730823836258,0.3069863,167.49,167.48,5.9708]
[1730823836572,0.3069863,167.49,167.47,14.928]
[1730823836871,0.3069863,167.49,167.46,10.97326713]
[1730823837447,0.3069863,167.49,167.46,17.13120312]
[1730823839368,0.3069863,167.49,167.45,17.13120312]
[1730823839559,0.3069863,167.49,167.46,17.13120312]
[1730823840569,0.3069863,167.49,167.47,17.13120312]
[1730823841979,0.3069863,167.49,167.46,17.13120312]
[1730823842473,6.2774863,167.49,167.46,17.13120312]
[1730823843582,6.2774863,167.49,167.47,17.13120312]
[1730823843766,0.3069863,167.49,167.48,17.13120312]
[1730823844373,0.3069863,167.49,167.47,17.13120312]
[1730823844583,0.3069863,167.49,167.46,17.13120312]
[1730823845284,0.3069863,167.49,167.45,17.13120312]
[1730823846260,6.2777863,167.49,167.44,17.13120312]
[1730823846471,23.40898942,167.49,167.44,17.13120312]
[1730823846676,6.2777863,167.49,167.44,17.13120312]
[1730823846883,6.2777863,167.49,167.45,17.13120312]
[1730823848083,23.40898942,167.49,167.44,17.13120312]
[1730823848382,6.2777863,167.49,167.45,17.13120312]
[1730823850284,0.3069863,167.49,167.48,17.13120312]
[1730823852167,0.3069863,167.49,167.48,23.10200312]
[1730823857366,0.3069863,167.49,167.48,16.93112644]
[1730823857562,0.3069863,167.49,167.44,20.9029]
[1730823857793,0.3069863,167.49,167.46,10.96032644]
[1730823858288,0.3069863,167.49,167.47,10.96032644]
[1730823860777,0.3069863,167.49,167.46,10.96032644]
[1730823860969,0.3069863,167.49,167.45,5.9715]
[1730823861176,0.3069863,167.49,167.47,10.96032644]
[1730823862387,0.3069863,167.49,167.46,10.96032644]
[1730823862590,0.3069863,167.49,167.47,10.96032644]
[1730823864081,6.2775863,167.49,167.45,10.96032644]
[1730823864472,6.2775863,167.49,167.44,10.96032644]
[1730823865582,6.2775863,167.49,167.45,10.96032644]
[1730823867090,17.23791274,167.49,167.44,10.96032644]
[1730823867678,6.2775863,167.49,167.45,10.96032644]
[1730823868272,6.2775863,167.49,167.43,5.9725]
[1730823868273,0.3069863,167.49,167.46,10.96032644]
[1730823872888,0.3069863,167.49,167.47,10.96032644]
[1730823873098,0.3069863,167.49,167.45,5.9716]
[1730823873099,0.3069863,167.49,167.48,10.96032644]
[1730823874590,0.3069863,167.49,167.48,16.93112644]
[1730823881215,0.3069863,167.49,167.48,10.96032644]
[1730823882812,0.3069863,167.49,167.48,16.93112644]
[1730823883508,0.3069863,167.49,167.48,5.9708]
[1730823883715,0.3069863,167.49,167.48,10.96032644]
[1730823884011,0.3069863,167.49,167.45,20.9017]
[1730823884307,0.3069863,167.49,167.48,10.96032644]
[1730823887511,0.3069863,167.49,167.47,10.96032644]
[1730823889099,0.3069863,167.49,167.48,10.96032644]
[1730823889501,0.3069863,167.49,167.47,10.96032644]
[1730823889802,6.2775863,167.49,167.42,20.9055]
[1730823890010,6.2775863,167.49,167.45,10.96032644]
[1730823890213,21.6866863,167.49,167.45,10.96032644]
[1730823890415,32.64701274,167.49,167.44,10.96032644]
[1730823890713,21.6866863,167.49,167.45,10.96032644]
[1730823893101,34.73721044,167.48,167.43,10.96032644]
[1730823893696,23.776884,167.48,167.44,10.96032644]
[1730823894304,23.776884,167.48,167.45,10.96032644]
[1730823895619,29.747684,167.48,167.44,10.96032644]
[1730823895826,40.70801044,167.48,167.43,10.96032644]
[1730823896319,29.747684,167.48,167.44,10.96032644]
[1730823896709,29.747684,167.48,167.42,14.9325]
[1730823896916,40.70801044,167.48,167.43,10.96032644]
[1730823898710,40.70801044,167.48,167.41,5.9733]
[1730823898914,23.776884,167.46,167.41,10.96032644]
[1730823899309,10.96032644,167.46,167.41,10.96032644]
[1730823899512,23.776884,167.45,167.41,10.96032644]
[1730823899908,23.776884,167.45,167.42,10.96032644]
[1730823900309,5.9708,167.48,167.43,10.96032644]
[1730823900610,23.776884,167.47,167.44,10.96032644]
[1730823900930,15.7160863,167.49,167.46,10.96032644]
[1730823901114,15.7160863,167.49,167.47,10.96032644]
[1730823901512,0.3069863,167.49,167.48,10.96032644]
[1730823903100,0.3069863,167.49,167.48,16.93112644]
[1730823903808,0.3069863,167.49,167.46,14.928]
[1730823904006,0.3069863,167.49,167.47,10.96032644]
[1730823904206,0.3069863,167.49,167.48,10.96032644]
[1730823904811,0.3069863,167.49,167.47,10.96032644]
[1730823905332,0.3069863,167.49,167.48,10.96032644]
[1730823906132,0.3069863,167.49,167.48,16.93112644]
[1730823911411,0.3069863,167.49,167.48,36.93112644]
[1730823911611,15.6325,167.59,167.49,20.0]
[1730823911835,15.9623,167.63,167.56,10.96032644]
[1730823912011,5.966,167.62,167.56,10.96032644]
[1730823912325,10.96032644,167.61,167.55,10.96032644]
[1730823912627,15.9623,167.56,167.48,20.8979]
[1730823912830,15.9623,167.56,167.51,10.96032644]
[1730823913132,21.9303,167.56,167.52,10.96032644]
[1730823913435,23.776884,167.55,167.52,10.96032644]
[1730823913739,23.776884,167.55,167.51,10.96032644]
[1730823914032,10.96032644,167.54,167.48,14.9271]
[1730823914215,23.776884,167.53,167.48,25.88742644]
[1730823914543,23.776884,167.51,167.44,14.93]
[1730823914721,23.776884,167.51,167.47,10.96032644]
[1730823915606,40.70721044,167.51,167.46,10.96032644]
[1730823915809,29.746884,167.51,167.47,10.96032644]
[1730823916023,23.776884,167.51,167.47,10.96032644]
[1730823917233,29.746784,167.51,167.47,10.96032644]
[1730823917840,29.746784,167.51,167.46,10.96032644]
[1730823918135,29.746784,167.51,167.48,10.96032644]
[1730823918524,29.746784,167.51,167.47,10.96032644]
[1730823918726,23.776884,167.51,167.48,10.96032644]
[1730823918938,40.70551044,167.55,167.49,10.96032644]
[1730823919232,23.776884,167.53,167.48,10.96032644]
[1730823920032,5.9694,167.52,167.48,10.96032644]
[1730823922226,5.9694,167.52,167.49,10.96032644]
[1730823922833,5.9694,167.52,167.47,5.9712]
[1730823923044,5.9694,167.52,167.49,10.96032644]
[1730823923534,5.9687,167.54,167.49,10.96032644]
[1730823923735,5.9687,167.54,167.5,10.96032644]
[1730823924240,5.9683,167.55,167.51,10.96032644]
[1730823924617,5.9683,167.55,167.48,20.8977]
[1730823924914,6.7044863,167.57,167.51,10.96032644]
[1730823925114,6.7044863,167.57,167.48,20.8977]
[1730823925115,12.6722863,167.57,167.52,10.96032644]
[1730823925929,10.96032644,167.56,167.48,14.9271]
[1730823926131,10.96032644,167.55,167.48,20.8979]
[1730823926322,10.96032644,167.55,167.49,10.96032644]
[1730823926634,23.776884,167.54,167.49,10.96032644]
[1730823926836,34.73721044,167.54,167.48,14.9271]
[1730823927038,34.73721044,167.54,167.49,10.96032644]
[1730823927234,34.73721044,167.54,167.48,25.88742644]
[1730823927437,34.73721044,167.54,167.49,10.96032644]
[1730823927935,5.969,167.53,167.48,25.88742644]
[1730823928141,16.92932644,167.53,167.48,25.88742644]
[1730823928331,23.776884,167.52,167.48,10.96032644]
[1730823928640,23.776884,167.52,167.47,10.96032644]
[1730823928826,10.96032644,167.5,167.44,20.9024]
[1730823929025,10.96032644,167.47,167.41,6.24079106]
[1730823929227,10.96032644,167.47,167.42,10.96032644]
[1730823929429,10.96032644,167.48,167.43,10.96032644]
[1730823929946,5.9712,167.47,167.42,10.96032644]
[1730823930437,10.96032644,167.45,167.39,6.24249372]
[1730823930656,10.96032644,167.45,167.39,10.96032644]
[1730823930833,10.96032644,167.42,167.36,14.9373]
[1730823931141,23.776884,167.43,167.39,10.96032644]
[1730823931322,23.776884,167.46,167.4,10.96032644]
[1730823932123,5.9719,167.45,167.41,10.96032644]
[1730823932444,5.9719,167.45,167.4,10.96032644]
[1730823932636,5.9719,167.45,167.41,10.96032644]
[1730823934142,16.93222644,167.45,167.4,10.96032644]
[1730823934526,5.9719,167.45,167.42,10.96032644]
[1730823934945,16.2141,167.47,167.44,10.96032644]
[1730823935243,32.03762644,167.51,167.46,10.96032644]
[1730823935432,32.03762644,167.51,167.45,10.96032644]
[1730823935626,10.96032644,167.5,167.45,10.96032644]
[1730823936331,21.0773,167.51,167.46,10.96032644]
[1730823936550,23.776884,167.5,167.46,10.96032644]
[1730823936722,34.73721044,167.5,167.45,10.96032644]
[1730823936922,10.96032644,167.49,167.44,10.96032644]
[1730823937148,21.0773,167.51,167.43,5.9724]
[1730823937149,34.73721044,167.48,167.43,10.96032644]
[1730823937934,23.776884,167.48,167.44,10.96032644]
[1730823938243,23.776884,167.49,167.45,10.96032644]
[1730823938426,15.1076,167.51,167.46,10.96032644]
[1730823938626,21.1602,167.56,167.5,10.96032644]
[1730823938830,10.96032644,167.55,167.5,10.96032644]
[1730823939520,32.12052644,167.56,167.5,10.96032644]
[1730823939727,10.96032644,167.54,167.49,10.96032644]
[1730823940122,10.96032644,167.55,167.5,10.96032644]
[1730823940329,23.776884,167.55,167.5,10.96032644]
[1730823940670,23.776884,167.55,167.51,10.96032644]
[1730823940945,5.9687,167.54,167.5,10.96032644]
[1730823941542,5.9687,167.54,167.49,17.1228985]
[1730823941735,5.9687,167.54,167.5,17.1228985]
[1730823941933,5.9687,167.54,167.51,17.1228985]
[1730823942757,5.9687,167.54,167.5,17.1228985]
[1730823943247,5.9687,167.54,167.49,17.1228985]
[1730823943444,5.9687,167.54,167.52,17.1228985]
[1730823943641,29.745184,167.56,167.53,17.1228985]
[1730823944225,29.745184,167.56,167.52,17.1228985]
[1730823944426,29.745184,167.56,167.51,17.1228985]
[1730823945947,29.745184,167.56,167.52,17.1228985]
[1730823946631,29.745184,167.56,167.53,17.1228985]
[1730823947953,29.745184,167.56,167.52,17.1228985]
[1730823948752,46.8680825,167.56,167.5,17.1228985]
[1730823948952,17.1228985,167.54,167.46,21.7143]
[1730823949252,23.776884,167.53,167.48,17.1228985]
[1730823949835,23.776884,167.53,167.42,22.2991]
[1730823949836,5.9705,167.49,167.42,16.236]
[1730823950045,5.9705,167.49,167.43,17.1228985]
[1730823950046,40.8997825,167.48,167.43,17.1228985]
[1730823950450,5.9705,167.49,167.45,17.1228985]
[1730823950652,5.9705,167.49,167.46,17.1228985]
[1730823951244,5.9705,167.49,167.45,17.1228985]
[1730823952249,23.776884,167.48,167.44,17.1228985]
[1730823953257,5.9712,167.47,167.44,17.1228985]
[1730823954545,5.9712,167.47,167.43,17.1228985]
[1730823955757,5.9712,167.47,167.42,17.1228985]
[1730823956537,23.0940985,167.47,167.42,17.1228985]
[1730823956957,5.9712,167.47,167.43,17.1228985]
[1730823959853,5.9701,167.5,167.44,17.1228985]
[1730823960059,5.9701,167.5,167.46,17.1228985]
[1730823960242,5.9697,167.52,167.47,17.1228985]
[1730823960554,23.0925985,167.52,167.46,17.1228985]
[1730823961054,5.9697,167.52,167.48,17.1228985]
[1730823961864,29.745884,167.53,167.48,17.1228985]
[1730823962247,5.969,167.53,167.49,17.1228985]
[1730823962446,23.0911985,167.55,167.5,17.1228985]
[1730823962668,5.9683,167.55,167.51,17.1228985]
[1730823963458,16.4638,167.56,167.51,17.1228985]